bitfinex/quotes_ETHUSD_20251017
["timestamp","ask_amount","ask_price","bid_price","bid_amount"]
[1760699486849,1.728,3746.2,3745.6,0.001]
[1760699487045,2.66959247,3745.9,3745.6,0.001]
[1760699487346,2.66967371,3745.8,3745.6,0.001]
[1760699487510,0.0439,3746.6,3745.6,0.001]
[1760699487710,1.728,3747.5,3745.7,0.4446]
[1760699487917,13.36359471,3749.2,3745.7,0.4446]
[1760699487918,0.04654048,3747.1,3745.7,0.4446]
[1760699488140,1.728,3746.8,3745.7,0.4446]
[1760699488312,2.66906241,3746.7,3745.7,0.4446]
[1760699488516,1.728,3746.9,3745.7,0.4446]
[1760699488712,0.04654048,3747.1,3746.0,2.66951341]
[1760699488927,0.04654048,3747.1,3746.1,0.6646]
[1760699488928,1.728,3746.9,3746.1,0.6646]
[1760699489130,1.728,3746.9,3745.6,0.001]
[1760699489131,2.66947251,3746.1,3745.6,0.001]
[1760699489347,0.6336,3746.5,3745.6,0.001]
[1760699489658,2.66951051,3746.1,3745.6,0.001]
[1760699490064,0.04654064,3746.4,3745.6,0.001]
[1760699490453,1.728,3746.2,3745.6,0.001]
[1760699490639,2.66972795,3745.7,3745.6,0.001]
[1760699491161,1.7719,3746.1,3745.6,0.001]
[1760699491367,0.04654455,3745.8,3745.6,0.001]
[1760699491934,2.71620836,3745.8,3745.6,0.001]
[1760699492459,0.04654455,3745.8,3745.6,0.001]
[1760699493157,2.66972795,3745.7,3745.6,0.001]
[1760699493534,2.71622392,3745.8,3745.6,0.001]
[1760699493927,0.04654455,3745.8,3745.6,0.001]
[1760699494259,2.66972795,3745.7,3745.6,0.001]
[1760699494466,0.04654455,3745.8,3745.6,0.001]
[1760699494636,2.71620304,3745.8,3745.6,0.001]
[1760699494970,4.39772795,3745.7,3745.6,0.001]
[1760699495362,16.60085395,3745.7,3745.6,0.001]
[1760699495675,14.66505195,3745.7,3745.6,0.001]
[1760699495994,5.07522795,3745.7,3745.6,0.001]
[1760699496152,9.35272495,3745.7,3745.6,0.001]
[1760699496349,5.03132795,3745.7,3745.6,0.001]
[1760699496549,9.24980595,3745.7,3745.6,0.001]
[1760699496757,1.728,3745.7,3745.6,0.001]
[1760699496966,4.39772795,3745.7,3745.6,0.001]
[1760699497275,1.728,3745.7,3745.6,0.001]
[1760699497639,2.66951466,3746.0,3745.6,0.001]
[1760699497843,2.66972795,3745.7,3745.6,0.001]
[1760699498083,2.66968066,3745.8,3745.6,0.001]
[1760699498252,4.39772795,3745.7,3745.6,0.001]
[1760699498660,1.728,3745.7,3745.6,0.001]
[1760699499557,4.39772795,3745.7,3745.6,0.001]
[1760699500171,9.75345795,3745.7,3745.6,0.001]
[1760699500562,3.885257,3745.7,3745.6,0.001]
[1760699500741,4.39772795,3745.7,3745.6,0.001]
[1760699502874,4.39692795,3745.7,3745.6,0.001]
[1760699503345,19.04770784,3745.7,3745.6,0.001]
[1760699503547,35.75639084,3745.7,3745.6,0.001]
[1760699503751,19.04770784,3745.7,3745.6,0.001]
[1760699506187,22.70034884,3745.7,3745.6,0.001]
[1760699506489,21.11449784,3745.7,3745.6,0.001]
[1760699506684,19.04770784,3745.7,3745.6,0.001]
[1760699506988,18.41410784,3745.7,3745.6,0.001]
[1760699508177,19.04770784,3745.7,3745.6,0.001]
[1760699508377,19.09150784,3745.7,3745.6,0.001]
[1760699508567,12.55812379,3745.4,3745.3,0.001]
[1760699508770,10.63437779,3745.4,3745.3,0.001]
[1760699509484,4.39794179,3745.4,3745.3,0.001]
[1760699509680,8.96034179,3745.4,3745.3,0.001]
[1760699509884,7.51302579,3745.4,3745.3,0.001]
[1760699510271,5.03154179,3745.4,3745.3,0.001]
[1760699510591,9.75511679,3745.4,3745.3,0.001]
[1760699510892,1.728,3745.4,3745.3,0.001]
[1760699511189,4.39794179,3745.4,3745.3,0.001]
[1760699511362,5.03154179,3745.4,3745.3,0.001]
[1760699511757,4.39794179,3745.4,3745.3,0.001]
[1760699511961,1.728,3745.4,3745.3,0.4311]
[1760699512592,4.39794179,3745.4,3745.3,0.001]
[1760699513496,5.03154179,3745.4,3745.3,0.001]
[1760699513682,7.89526179,3745.4,3745.3,0.001]
[1760699513998,7.55007879,3745.4,3745.3,0.001]
[1760699514396,16.21143479,3745.4,3745.3,0.001]
[1760699514584,0.6336,3745.2,3744.2,0.6501]
[1760699514786,1.728,3745.0,3744.3,0.4301]
[1760699514986,1.728,3745.3,3744.3,0.4301]
[1760699515200,1.728,3745.4,3744.3,0.4301]
[1760699515495,2.67032325,3744.9,3744.3,0.4301]
[1760699515699,2.6704202,3744.8,3744.3,0.4301]
[1760699515900,1.728,3745.4,3744.4,0.4301]
[1760699516066,2.3616,3745.4,3744.4,0.4301]
[1760699516269,2.67037237,3744.8,3744.4,0.4301]
[1760699516497,14.01717989,3745.5,3744.5,0.4301]
[1760699516698,0.0438,3746.6,3744.5,0.4301]
[1760699516699,0.0438,3747.1,3745.4,0.228]
[1760699516868,14.01717989,3747.1,3745.5,0.4301]
[1760699517268,0.04654436,3746.5,3745.5,0.4301]
[1760699517686,0.04654436,3746.5,3746.4,0.228]
[1760699517898,2.66871031,3747.2,3746.4,0.6581]
[1760699518104,0.04653759,3747.1,3746.4,0.6581]
[1760699518397,2.66895568,3746.8,3746.4,0.6581]
[1760699518597,0.04653759,3747.1,3746.5,0.4301]
[1760699518801,0.13243478,3747.3,3746.5,0.4301]
[1760699518977,0.002,3747.3,3747.2,0.228]
[1760699519170,0.002,3747.3,3747.2,0.6581]
[1760699520322,0.002,3747.3,3747.2,0.228]
[1760699520533,0.002,3747.7,3747.2,0.228]
[1760699520534,0.002,3747.7,3747.2,0.6581]
[1760699520738,0.002,3747.7,3747.3,0.33267703]
[1760699520892,0.002,3747.7,3747.5,2.66842758]
[1760699521186,0.002,3748.1,3747.4,2.66851683]
[1760699521389,0.002,3748.1,3747.4,0.4291]
[1760699521808,0.002,3747.3,3747.2,0.228]
[1760699521988,0.002,3747.3,3747.2,0.6571]
[1760699523185,0.002,3747.3,3747.2,0.4291]
[1760699523392,2.66865926,3747.2,3746.9,0.2218]
[1760699523633,0.002,3747.3,3746.6,2.66905144]
[1760699523785,0.002,3748.1,3747.0,0.4291]
[1760699524120,1.728,3747.9,3747.0,0.4291]
[1760699524322,0.002,3748.1,3747.0,0.4291]
[1760699524487,0.002,3748.1,3747.1,2.6687278]
[1760699524689,0.002,3748.1,3747.2,2.66864172]
[1760699524924,0.002,3748.1,3747.8,2.66821251]
[1760699525121,0.002,3748.1,3747.4,0.1328]
[1760699525327,0.002,3748.1,3747.3,0.4291]
[1760699525513,0.002,3748.1,3747.4,0.4291]
[1760699526287,2.66837917,3747.6,3746.8,0.4291]
[1760699526590,0.6336,3747.5,3746.0,0.2218]
[1760699526790,2.66894416,3746.8,3745.4,0.228]
[1760699527002,0.6336,3746.9,3745.4,0.228]
[1760699527003,2.66930501,3746.3,3745.5,0.4291]
[1760699527289,2.3616,3746.5,3745.4,0.228]
[1760699527510,0.04653888,3746.7,3746.4,0.2218]
[1760699527710,0.04653888,3746.7,3746.5,0.4291]
[1760699527942,0.04653888,3746.7,3746.4,0.2218]
[1760699527943,2.66857342,3747.4,3746.4,0.2218]
[1760699528235,2.71541952,3746.9,3746.1,0.2218]
[1760699528442,0.04653298,3746.9,3746.1,0.2218]
[1760699528606,14.25926564,3748.7,3746.2,0.4291]
[1760699528806,0.04652929,3748.4,3747.5,2.66838864]
[1760699529110,0.04652929,3748.4,3746.2,0.4291]
[1760699529331,0.04652929,3748.4,3747.1,2.66873048]
[1760699529638,0.04652929,3748.4,3747.2,0.28015305]
[1760699529805,0.04652929,3748.4,3746.1,0.2218]
[1760699529806,0.04652929,3748.4,3747.4,2.66844618]
[1760699530006,0.04652929,3748.4,3747.3,0.1328]
[1760699530208,0.04652929,3748.4,3747.1,0.4291]
[1760699530209,2.66745312,3748.9,3747.7,0.1328]
[1760699530424,1.9693793,3749.0,3747.1,0.4291]
[1760699530639,0.04651703,3748.8,3747.7,2.66823297]
[1760699530842,0.04651703,3748.8,3747.7,0.2668233]
[1760699531044,0.04651703,3748.8,3747.8,0.4291]
[1760699531420,0.04651703,3748.8,3747.9,0.4291]
[1760699531826,0.04651703,3748.8,3747.3,0.5619]
[1760699532345,0.04651703,3748.8,3746.3,0.4291]
[1760699532346,2.66875207,3747.1,3746.3,0.4291]
[1760699532518,1.728,3747.8,3746.3,0.4291]
[1760699532716,3.450903,3747.8,3746.3,0.4291]
[1760699532918,0.002,3748.1,3746.4,2.66922912]
[1760699533137,0.002,3748.1,3746.3,0.4291]
[1760699533138,0.002,3748.1,3747.7,0.1328]
[1760699533438,0.002,3748.1,3747.8,2.66823067]
[1760699533651,0.002,3748.1,3747.1,0.4291]
[1760699534534,0.002,3748.1,3746.5,0.30983291]
[1760699534844,0.002,3748.1,3746.6,0.4291]
[1760699535431,1.253,3748.2,3747.1,2.66866689]
[1760699535626,0.002,3749.1,3748.1,0.2218]
[1760699535822,0.04651085,3748.7,3748.4,2.6677483]
[1760699536026,0.04651085,3748.7,3748.1,0.2218]
[1760699536027,0.04651085,3748.7,3748.5,3.36357481]
[1760699536255,0.002,3749.1,3748.6,0.4291]
[1760699536426,0.002,3749.1,3748.8,2.66748363]
[1760699536628,0.002,3749.1,3748.7,0.4291]
[1760699536832,0.002,3749.1,3748.1,0.2218]
[1760699537133,0.002,3749.1,3748.7,0.4291]
[1760699537656,0.002,3749.1,3748.4,2.66779353]
[1760699537859,0.002,3749.1,3748.3,0.4291]
[1760699538225,0.002,3749.1,3748.1,0.2218]
[1760699538559,0.6336,3749.0,3747.5,0.2218]
[1760699538800,4.39731867,3749.1,3747.7,2.66829373]
[1760699538928,4.39731867,3749.1,3747.6,0.4291]
[1760699538929,0.002,3749.1,3747.8,0.4291]
[1760699539132,0.002,3749.1,3748.2,2.66788725]
[1760699539326,0.002,3749.1,3747.9,0.30974744]
[1760699539541,0.002,3749.1,3748.1,3.09710127]
[1760699539743,0.002,3749.1,3748.8,2.66746962]
[1760699539957,0.002,3749.1,3748.2,0.4291]
[1760699540154,0.002,3749.1,3749.0,2.66737796]
[1760699540568,0.002,3749.5,3749.4,2.6670934]
[1760699540862,0.002,3749.9,3749.8,2.66680889]
[1760699541265,0.002,3750.4,3750.3,2.66645335]
[1760699541775,1.17746486,3752.4,3750.7,2.66616898]
[1760699541973,1.17746486,3752.4,3750.7,3.13896898]
[1760699542174,3.84244237,3752.4,3750.7,3.13896898]
[1760699542387,1.17746486,3752.4,3750.7,3.13896898]
[1760699542757,1.17746486,3752.4,3750.7,4.86696898]
[1760699542947,1.17746486,3752.4,3750.7,5.62029198]
[1760699543143,1.17746486,3752.4,3750.8,2.66609789]
[1760699543343,1.17746486,3752.4,3752.1,0.2152]
[1760699543547,1.17746486,3752.4,3752.1,0.348]
[1760699544077,1.17746486,3752.4,3752.1,0.8208]
[1760699544246,1.17746486,3752.4,3752.1,3.35317416]
[1760699544444,1.17746486,3752.4,3752.1,0.8208]
[1760699544640,1.17746486,3752.4,3752.3,2.66503211]
[1760699544841,1.17746486,3752.4,3752.3,3.13783211]
[1760699546967,1.17746486,3752.4,3752.1,0.2152]
[1760699547172,1.17746486,3752.4,3751.3,0.4728]
[1760699547374,1.17746486,3752.4,3751.4,2.66565847]
[1760699547573,1.17746486,3752.4,3751.4,3.24609526]
[1760699547876,1.17746486,3752.4,3751.4,0.58043379]
[1760699548086,0.1069,3752.3,3750.7,0.4728]
[1760699548327,1.8349,3752.2,3750.2,0.2152]
[1760699548608,0.1644,3750.8,3749.7,0.23511515]
[1760699548765,0.1644,3750.8,3749.4,0.4728]
[1760699549126,0.1644,3750.8,3749.0,0.22081737]
[1760699549127,0.1074,3750.7,3749.0,0.2152]
[1760699549413,2.66650629,3750.3,3748.9,2.66740475]
[1760699549617,0.1074,3750.6,3748.6,0.4728]
[1760699550107,0.0464893,3750.4,3748.8,2.66751021]
[1760699550404,2.66660963,3750.1,3748.9,0.31403102]
[1760699550589,0.0456893,3750.4,3748.3,0.2152]
[1760699550590,0.1074,3750.0,3748.3,0.2152]
[1760699550790,0.2058,3749.9,3748.3,0.2152]
[1760699550991,0.2044,3754.1,3749.9,0.2152]
[1760699551171,0.04648469,3752.8,3750.2,1.728]
[1760699551367,14.13124086,3754.4,3750.2,1.728]
[1760699551368,1.16706499,3754.0,3752.3,0.2152]
[1760699551566,1.16706499,3754.0,3752.0,0.2152]
[1760699551567,2.575292,3753.9,3752.0,0.2152]
[1760699551769,0.1572,3752.1,3750.5,0.2152]
[1760699552000,0.1572,3752.1,3749.0,0.2152]
[1760699552001,0.1122,3752.0,3749.1,0.02667306]
[1760699552199,0.1122,3752.0,3749.2,0.4728]
[1760699552200,2.3616,3751.7,3749.2,0.4728]
[1760699552404,0.6336,3751.9,3749.3,0.33553068]
[1760699552604,0.1572,3752.1,3749.6,4.39494423]
[1760699552901,0.1572,3752.1,3751.4,2.66567049]
[1760699553102,0.1572,3752.1,3750.2,2.66652445]
[1760699553103,0.15917231,3752.7,3751.1,2.66583496]
[1760699553267,2.66514489,3752.2,3750.5,3.13910631]
[1760699553468,0.6336,3752.0,3750.0,0.2152]
[1760699553670,0.2683,3751.9,3750.6,2.66623359]
[1760699553884,0.6336,3751.5,3749.0,0.2152]
[1760699554105,0.6336,3751.7,3750.3,2.66644068]
[1760699554298,0.171,3751.8,3750.6,2.66618804]
[1760699554504,0.171,3751.8,3750.4,0.4728]
[1760699554687,0.171,3751.8,3751.0,2.66591726]
[1760699554898,0.04647963,3752.1,3750.5,0.33544503]
[1760699555072,0.1703,3751.9,3750.7,0.1328]
[1760699555413,0.04647963,3752.1,3751.0,2.66595574]
[1760699555570,0.04647963,3752.1,3750.9,0.1328]
[1760699555767,0.04647963,3752.1,3750.4,0.4728]
[1760699555768,0.04647963,3752.1,3750.7,0.1328]
[1760699556081,0.04647963,3752.1,3750.4,0.4728]
[1760699556082,0.6336,3751.9,3750.4,0.1328]
[1760699556412,2.66567995,3751.4,3750.4,0.1328]
[1760699556612,2.66554322,3751.6,3750.1,2.66658078]
[1760699556774,0.6336,3751.7,3750.3,2.66643597]
[1760699556971,0.6336,3751.7,3750.2,0.27993808]
[1760699556972,2.66567926,3751.4,3750.2,0.27993808]
[1760699557376,1.728,3751.1,3750.0,0.1328]
[1760699557620,2.6660648,3750.9,3749.1,2.66730682]
[1760699557805,2.3616,3750.8,3749.6,2.66688599]
[1760699558011,1.728,3750.7,3749.0,1.01514]
[1760699558234,2.66624006,3750.6,3749.2,2.66723567]
[1760699558403,3.34618642,3750.8,3749.2,2.66723567]
[1760699558404,0.68008671,3750.8,3749.2,2.66723567]
[1760699558605,2.277256,3750.7,3749.1,0.39077983]
[1760699558933,2.277256,3750.7,3749.1,0.001]
[1760699558934,5.3327645,3750.4,3749.1,0.001]
[1760699559117,1.728,3750.4,3749.1,0.001]
[1760699559321,13.14011442,3751.1,3749.1,0.001]
[1760699559322,1.728,3750.0,3749.1,0.001]
[1760699559520,0.04649936,3750.1,3748.7,0.001]
[1760699559719,0.2851,3749.9,3748.7,0.001]
[1760699560036,0.1821,3751.0,3748.8,0.4728]
[1760699560252,0.6336,3750.7,3748.8,0.4728]
[1760699560397,2.66675885,3749.9,3748.7,0.001]
[1760699560602,2.3616,3749.8,3748.7,0.26786827]
[1760699560802,0.04649663,3750.1,3748.8,0.4728]
[1760699561110,0.04649663,3750.1,3749.4,2.66702285]
[1760699561344,0.6336,3750.6,3749.5,2.66701102]
[1760699561498,0.04649178,3750.6,3749.5,2.66701102]
[1760699561702,0.04649178,3750.6,3749.6,0.2667011]
[1760699561904,0.04649178,3750.6,3748.7,2.66854364]
[1760699561905,0.6336,3750.1,3748.7,2.66854364]
[1760699562122,0.0999,3750.4,3749.2,2.66722092]
[1760699562295,0.0999,3750.4,3749.1,0.2152]
[1760699562296,1.728,3750.4,3749.1,0.2152]
[1760699562502,1.728,3750.4,3749.2,2.95544247]
[1760699562702,0.6336,3750.5,3749.2,0.28825756]
[1760699562934,0.04649178,3750.4,3749.3,2.66710808]
[1760699563240,0.04649178,3750.4,3749.2,0.28825756]
[1760699563446,2.66673777,3749.9,3748.7,0.001]
[1760699563659,0.6336,3750.2,3748.7,0.001]
[1760699563808,0.04649178,3750.4,3748.8,0.4728]
[1760699564136,0.04649178,3750.4,3749.8,0.2152]
[1760699564441,0.1821,3751.0,3750.2,2.66651492]
[1760699564738,0.1821,3751.0,3749.8,0.2152]
[1760699564936,0.002,3751.5,3749.9,0.4728]
[1760699565098,0.002,3751.5,3749.4,0.4728]
[1760699565099,0.1805,3750.9,3749.4,0.4728]
[1760699565299,0.1805,3750.9,3749.6,2.6669249]
[1760699565535,0.1805,3750.9,3749.4,0.4728]
[1760699565536,1.9085,3750.9,3749.7,0.31397249]
[1760699565734,0.1805,3750.9,3749.4,0.4728]
[1760699566232,0.1805,3750.9,3749.5,0.01381017]
[1760699566431,0.002,3751.5,3749.6,0.4728]
[1760699566728,1.728,3751.4,3749.6,0.4728]
[1760699566929,4.3939701,3751.0,3749.6,3.13974038]
[1760699567134,0.179,3750.9,3749.0,0.2152]
[1760699567338,2.66646387,3750.3,3749.0,0.2152]
[1760699567537,2.3616,3750.6,3749.2,2.66719747]
[1760699567702,0.6336,3750.8,3749.3,0.48789423]
[1760699567903,0.179,3750.9,3749.9,2.66671933]
[1760699568109,0.179,3750.9,3749.5,0.1328]
[1760699568304,0.6336,3751.2,3750.0,2.66662654]
[1760699568504,0.1066,3751.5,3749.9,0.2152]
[1760699568727,0.1066,3751.5,3750.3,2.66643129]
[1760699569033,2.66594434,3751.1,3749.9,0.2152]
[1760699569235,0.6336,3751.1,3749.5,0.6056]
[1760699569426,0.1054,3751.0,3749.5,0.6056]
[1760699569630,0.04648438,3751.2,3749.5,0.6056]
[1760699569631,0.04648438,3751.2,3749.6,4.769376]
[1760699569805,0.002,3751.5,3751.1,2.88108467]
[1760699570004,0.002,3751.5,3750.7,0.1328]
[1760699570304,0.002,3751.5,3750.7,2.79896699]
[1760699570504,0.002,3751.5,3750.7,2.79895186]
[1760699570704,0.002,3751.5,3751.4,0.2152]
[1760699570905,0.002,3751.5,3751.4,3.01367148]
[1760699571138,0.002,3751.5,3751.4,4.05441645]
[1760699571652,0.003,3754.5,3752.2,2.66510313]
[1760699571802,0.1128,3753.8,3752.2,2.66510313]
[1760699572005,0.0464646,3753.7,3752.2,0.4341]
[1760699572406,0.0464646,3753.7,3752.2,3.09920313]
[1760699573045,1.728,3753.6,3752.2,3.09920313]
[1760699573247,0.1966,3752.8,3752.1,0.1328]
[1760699573450,0.1957,3753.1,3751.8,0.1328]
[1760699573745,0.2421634,3753.1,3751.8,0.1328]
[1760699573954,2.66489418,3752.5,3751.1,0.1328]
[1760699574118,0.1,3752.7,3751.2,0.32440881]
[1760699574320,0.0012,3752.3,3751.2,2.66578896]
[1760699574520,0.0012,3752.3,3751.3,2.6657395]
[1760699574722,0.0012,3752.3,3751.3,0.1328]
[1760699574922,0.0012,3752.3,3751.6,2.66552785]
[1760699575137,0.0012,3752.3,3751.3,0.1328]
[1760699575458,0.0012,3752.3,3751.9,2.66528205]
[1760699575753,0.0012,3752.3,3752.0,0.02665245]
[1760699575960,0.0012,3752.3,3751.9,0.546355]
[1760699576169,0.0012,3752.3,3752.2,2.88780313]
[1760699576467,0.0012,3752.3,3752.2,3.02060313]
[1760699576981,0.0012,3752.3,3750.1,13.13018237]
[1760699576982,0.0012,3752.3,3751.9,0.001]
[1760699577358,0.0012,3752.3,3752.0,2.66523916]
[1760699577668,0.0012,3752.3,3751.9,2.6663158]
[1760699578181,0.0012,3752.3,3751.9,3.47900083]
[1760699578379,0.0012,3752.3,3751.9,0.81368503]
[1760699578541,0.0012,3752.3,3752.2,0.2227]
[1760699579141,0.0012,3752.3,3752.1,2.6651647]
[1760699579336,0.0012,3752.3,3752.2,2.88780313]
[1760699579556,0.0012,3752.3,3752.2,0.56827031]
[1760699579877,0.0012,3752.3,3752.0,0.1328]
[1760699579878,0.0012,3752.3,3751.9,0.001]
[1760699580049,0.0012,3752.3,3752.0,3.0993331]
[1760699580274,0.0012,3752.3,3751.9,0.001]
[1760699580275,0.1,3752.2,3751.9,0.001]
[1760699580516,2.6652452,3752.0,3751.9,0.001]
[1760699581003,2.7652452,3752.0,3751.9,0.001]
[1760699581182,0.1,3752.0,3751.9,0.001]
[1760699581506,1.77566813,3752.3,3751.9,0.001]
[1760699581662,0.04766813,3752.3,3751.9,0.001]
[1760699582486,2.76516413,3752.2,3751.9,0.001]
[1760699582686,0.04766813,3752.3,3751.9,0.001]
[1760699583303,0.0012,3752.3,3751.9,0.001]
[1760699583503,0.0012,3752.3,3751.9,2.66631341]
[1760699583704,0.0012,3752.3,3752.0,0.53317713]
[1760699583871,0.0012,3752.3,3751.9,0.001]
[1760699584070,0.0012,3752.3,3752.1,2.6651057]
[1760699584410,0.0012,3752.3,3752.2,3.11930313]
[1760699584573,0.0012,3752.3,3752.2,3.14595416]
[1760699584772,0.002,3752.7,3752.6,2.66481905]
[1760699584984,0.002,3752.7,3752.6,0.53297302]
[1760699585198,0.002,3752.7,3752.6,3.65199207]
[1760699585396,0.002,3752.7,3752.6,0.53297302]
[1760699585705,0.002,3752.7,3752.1,0.2182]
[1760699585889,0.002,3752.7,3752.3,2.6649683]
[1760699586095,0.002,3752.7,3752.1,0.2182]
[1760699586287,0.002,3752.7,3752.6,2.66481905]
[1760699586601,0.002,3752.7,3752.2,0.4542]
[1760699586602,0.002,3752.7,3752.3,2.66497852]
[1760699586906,0.002,3752.7,3751.9,0.001]
[1760699587306,0.002,3752.7,3752.4,2.66490628]
[1760699587608,0.002,3752.7,3752.6,2.66481905]
[1760699587914,0.002,3752.7,3752.5,2.66487268]
[1760699588214,0.002,3752.7,3752.6,2.66481905]
[1760699588372,0.002,3752.7,3752.6,3.47938915]
[1760699588574,0.002,3752.7,3752.6,2.99854096]
[1760699588773,1.16706499,3754.0,3752.7,2.66474804]
[1760699588977,1.16706499,3754.0,3753.4,2.66424859]
[1760699589198,1.16706499,3754.0,3753.5,2.66417063]
[1760699589411,1.16706499,3754.0,3752.9,0.2182]
[1760699589709,0.17,3753.9,3753.0,2.66447958]
[1760699589893,0.17,3753.9,3752.9,2.88277717]
[1760699590219,1.16706499,3754.0,3752.9,0.2182]
[1760699590431,1.16706499,3754.0,3753.3,2.66427268]
[1760699590779,1.16706499,3754.0,3752.9,0.351]
[1760699591021,1.16706499,3754.0,3753.3,2.66429182]
[1760699591205,1.16706499,3754.0,3752.6,2.66481465]
[1760699591206,0.2756,3753.9,3752.6,2.66481465]
[1760699591406,2.66396717,3753.8,3752.3,2.88317593]
[1760699591716,0.21514847,3753.9,3752.4,0.36189272]
[1760699591902,0.21514847,3753.9,3752.8,2.66462269]
[1760699592091,0.21514847,3753.9,3752.4,0.4542]
[1760699592412,0.21514847,3753.9,3752.8,2.66465039]
[1760699592613,0.21514847,3753.9,3752.9,2.66458912]
[1760699592813,2.98600254,3753.9,3752.3,0.2182]
[1760699593126,1.16706499,3754.0,3752.6,2.66481905]
[1760699593331,1.16706499,3754.0,3753.7,2.66403481]
[1760699593485,1.16706499,3754.0,3753.9,2.88209621]
[1760699593685,1.16706499,3754.0,3753.9,0.2182]
[1760699593885,0.4338,3757.4,3754.1,1.728]
[1760699594135,0.2225,3758.0,3754.0,24.380019]
[1760699594136,0.13938874,3756.2,3755.1,2.66304492]
[1760699594299,0.13938874,3756.2,3756.1,2.84923593]
[1760699594501,0.04640066,3756.4,3756.3,3.230472]
[1760699594686,0.4338,3758.5,3756.3,2.11332194]
[1760699594985,0.2225,3757.9,3757.0,2.66169816]
[1760699595204,0.0072062,3758.1,3757.0,2.66169816]
[1760699595409,1.23726526,3757.1,3757.0,4.74839816]
[1760699595750,0.0072062,3758.1,3758.0,2.66098988]
[1760699595963,0.0072062,3758.1,3758.0,5.54598988]
[1760699596112,0.0072062,3758.1,3758.0,7.63268988]
[1760699596311,0.0072062,3758.1,3758.0,8.67924796]
[1760699596709,0.24169012,3760.8,3758.0,8.67924796]
[1760699596710,1.53629153,3761.9,3760.2,2.659433]
[1760699597017,1.53629153,3761.9,3760.2,3.113633]
[1760699597228,0.4314,3761.7,3760.2,2.659433]
[1760699597431,1.73069153,3761.9,3760.2,5.576433]
[1760699597629,0.4314,3761.6,3760.2,3.4953233]
[1760699597844,1.39706566,3761.9,3760.2,10.91127463]
[1760699598017,1.39626567,3761.9,3760.4,0.6336]
[1760699598219,1.39626567,3761.9,3760.7,0.6336]
[1760699598546,1.39626567,3761.9,3760.8,2.932]
[1760699598841,0.199,3761.8,3760.8,2.932]
[1760699599147,1.53589224,3761.9,3761.0,2.65885966]
[1760699599310,1.39626567,3761.9,3760.8,2.932]
[1760699599510,1.39626567,3761.9,3760.9,2.6855274]
[1760699599809,1.39626567,3761.9,3760.9,0.4542]
[1760699600009,1.39626567,3761.9,3760.5,1.728]
[1760699600213,1.39626567,3761.9,3761.3,2.65862696]
[1760699600421,0.04635269,3763.1,3761.3,2.65862696]
[1760699600422,1.47026593,3765.1,3761.4,0.66018584]
[1760699600672,1.47026593,3765.1,3762.7,0.6336]
[1760699600673,8.143608,3763.4,3762.7,0.6336]
[1760699600960,0.4338,3764.6,3763.4,2.6571717]
[1760699601161,0.2225,3764.9,3763.4,3.4608717]
[1760699601358,1.47026593,3765.1,3763.5,18.6777141]
[1760699601661,1.47026593,3765.1,3765.0,0.8037]
[1760699601860,1.47026593,3765.1,3765.0,1.4373]
[1760699602018,1.47026593,3765.1,3765.0,0.8037]
[1760699602219,1.47026593,3765.1,3765.0,3.45974249]
[1760699602562,1.50686607,3766.6,3765.4,0.8037]
[1760699602776,1.50686607,3766.6,3765.7,0.8037]
[1760699602991,1.50686607,3766.6,3766.0,1.728]
[1760699603140,1.50686607,3766.6,3765.8,0.8037]
[1760699603480,0.4319,3766.5,3765.3,0.8037]
[1760699603775,1.50686607,3766.6,3766.0,2.65530924]
[1760699603973,1.50686607,3766.6,3766.5,2.65498473]
[1760699604140,1.50686607,3766.6,3766.5,3.45868473]
[1760699604484,1.50686607,3766.6,3766.5,34.07006578]
[1760699604649,1.50686607,3766.6,3766.5,3.14308105]
[1760699604855,1.50686607,3766.6,3764.7,2.65625362]
[1760699604856,1.50686607,3766.6,3765.0,0.8037]
[1760699605164,0.4319,3766.5,3764.3,0.8037]
[1760699605350,0.4319,3766.4,3764.5,0.8037]
[1760699605553,1.50686607,3766.6,3764.1,0.8037]
[1760699605554,0.4319,3766.3,3764.1,0.8037]
[1760699605799,0.4319,3766.2,3763.1,6.969204]
[1760699606087,0.2273,3764.2,3762.6,0.8037]
[1760699606382,0.4319,3764.1,3762.8,0.8037]
[1760699606539,0.4319,3764.1,3762.2,3.055]
[1760699606540,0.4319,3764.1,3762.3,0.8037]
[1760699606739,0.2273,3764.2,3762.3,0.8037]
[1760699606740,0.4319,3764.0,3762.5,0.8037]
[1760699607051,0.2273,3764.2,3763.1,2.65731488]
[1760699607251,0.4319,3764.4,3762.5,0.8037]
[1760699607451,0.2273,3764.8,3763.5,2.65703325]
[1760699607700,0.2273,3764.8,3763.7,0.8037]
[1760699607861,0.2273,3764.8,3763.7,2.6569599]
[1760699608066,1.9553,3766.2,3763.5,0.26570333]
[1760699608067,0.09999999,3768.4,3764.8,23.481162]
[1760699608391,0.2273,3769.1,3765.1,0.8037]
[1760699608392,0.2273,3767.6,3765.1,0.8037]
[1760699608547,0.2273,3766.9,3765.4,3.69837]
[1760699608746,0.4319,3767.2,3765.6,0.8037]
[1760699608996,0.00344939,3769.0,3768.1,2.65385738]
[1760699609161,0.00344939,3769.0,3767.9,2.65395958]
[1760699609162,0.00344939,3769.0,3767.9,0.8037]
[1760699609490,0.00344939,3769.0,3768.1,2.65385738]
[1760699609643,0.00344939,3769.0,3768.1,7.33393407]
[1760699609997,0.00344939,3769.0,3768.1,8.30734407]
[1760699610178,0.00344939,3769.0,3768.1,3.356125]
[1760699610376,1.2143316,3769.8,3768.1,3.048]
[1760699610577,0.4319,3769.7,3767.2,6.117202]
[1760699610763,3.08470816,3769.6,3767.0,5.318233]
[1760699610960,0.39133942,3769.5,3767.3,7.703638]
[1760699611163,3.08484469,3769.4,3767.2,6.633816]